fUST/lending_fUST_20250707
["ID","MTS","AMOUNT","RATE_DAILY","PERIOD"]
[370002099,1751821841085,-1200.0,0.0001803,2]
[370002100,1751821841094,-3000.0,0.0001803,2]
[370002101,1751821841104,-1200.0,0.0001803,2]
[370002102,1751821841113,-3000.0,0.0001803,2]
[370002104,1751821841122,-1200.0,0.0001803,2]
[370002106,1751821841132,-3000.0,0.0001803,2]
[370002108,1751821841141,-1200.0,0.0001803,2]
[370002110,1751821841151,-3000.0,0.0001803,2]
[370002112,1751821841160,-151.0,0.0001803,2]
[370002114,1751821841169,-207.4,0.0001803,2]
[370002116,1751821841179,-151.0,0.0001803,2]
[370002118,1751821841189,-151.0,0.0001803,2]
[370002120,1751821841198,-151.0,0.0001803,2]
[370002121,1751821841208,-151.0,0.0001803,2]
[370002123,1751821841220,-151.0,0.0001803,2]
[370002125,1751821841229,-151.0,0.0001803,2]
[370002127,1751821841239,-151.0,0.0001803,2]
[370002129,1751821841248,-151.0,0.0001803,2]
[370002131,1751821841258,-151.0,0.0001803,2]
[370002133,1751821841267,-151.0,0.0001803,2]
[370002135,1751821841276,-151.0,0.0001803,2]
[370002137,1751821841286,-151.0,0.0001803,2]
[370002139,1751821841295,-151.0,0.0001803,2]
[370002141,1751821841305,-151.0,0.0001803,2]
[370002143,1751821841316,-151.0,0.0001803,2]
[370002145,1751821841325,-151.0,0.0001803,2]
[370002147,1751821841334,-151.0,0.0001803,2]
[370002149,1751821841344,-151.0,0.0001803,2]
[370002151,1751821841353,-151.0,0.0001803,2]
[370002153,1751821841362,-151.0,0.0001803,2]
[370002155,1751821841371,-151.0,0.0001803,2]
[370002157,1751821841381,-151.0,0.0001803,2]
[370002159,1751821841390,-151.0,0.0001803,2]
[370002161,1751821841400,-151.0,0.0001803,2]
[370002163,1751821841409,-151.0,0.0001803,2]
[370002165,1751821841418,-151.0,0.0001803,2]
[370002167,1751821841428,-151.0,0.0001803,2]
[370002169,1751821841438,-198.0,0.0001803,2]
[370002171,1751821841446,-151.0,0.0001803,2]
[370002173,1751821841456,-151.0,0.0001803,2]
[370002175,1751821841465,-716.195754,0.00018085,2]
[370002176,1751821841475,-701.9,0.00018098,2]
[370002178,1751821841484,-930.94,0.00018099,2]
[370002180,1751821841493,-941.97,0.00018099,2]
[370002182,1751821841503,-460.0,0.00018099,2]
[370002184,1751821841512,-460.0,0.00018099,2]
[370002186,1751821841522,-1262.76,0.00018099,2]
[370002188,1751821841531,-1010.32,0.00018099,2]
[370002190,1751821841540,-936.47,0.00018099,2]
[370002192,1751821841550,-1092.48,0.00018099,2]
[370002194,1751821841558,-500.0,0.00018099,2]
[370002196,1751821841568,-605.55,0.00018099,2]
[370002198,1751821841577,-460.0,0.00018099,2]
[370002200,1751821841586,-460.0,0.00018099,2]
[370002202,1751821841595,-460.0,0.00018099,2]
[370002204,1751821841605,-998.47,0.00018099,2]
[370002205,1751821841614,-627.24,0.00018099,2]
[370002207,1751821841624,-460.0,0.00018099,2]
[370002209,1751821841634,-460.0,0.00018099,2]
[370002211,1751821841644,-460.0,0.000181,2]
[370002213,1751821841654,-460.0,0.000181,2]
[370002215,1751821841663,-1002.5,0.000181,2]
[370002217,1751821841672,-162.10946751,0.000181,2]
[370002219,1751821841682,-212.91,0.000181,2]
[370002221,1751821841691,-460.0,0.000181,2]
[370002223,1751821841700,-460.0,0.000181,2]
[370002225,1751821841710,-719.04,0.000181,2]
[370002227,1751821841719,-1567.87,0.000181,2]
[370002229,1751821841728,-466.08,0.000181,2]
[370002231,1751821841737,-941.0,0.000181,2]
[370002233,1751821841746,-602.21,0.000181,2]
[370002235,1751821841756,-479.59,0.000181,2]
[370002237,1751821841765,-499.13,0.000181,2]
[370002239,1751821841774,-460.0,0.000181,2]
[370002241,1751821841783,-742.6949969,0.0001814,2]
[370002243,1751821841792,-770.17471178,0.00018195,2]
[370002245,1751821841801,-798.67117612,0.0001825,2]
[370002247,1751821841811,-828.22200964,0.00018305,2]
[370002249,1751821841820,-858.86622399,0.0001836,2]
[370002251,1751821841829,-701.9,0.00018372,2]
[370002253,1751821841838,-930.94,0.00018373,2]
[370002255,1751821841847,-941.97,0.00018373,2]
[370002257,1751821841856,-460.0,0.00018373,2]
[370002259,1751821841865,-276.23499885,0.00018373,2]
[370002261,1751821841875,-1262.76,0.00018373,2]
[370002263,1751821841884,-1010.32,0.00018373,2]
[370002264,1751821841893,-936.47,0.00018373,2]
[370002265,1751821841902,-1092.48,0.00018373,2]
[370002266,1751821841911,-605.55,0.00018373,2]
[370002268,1751821841920,-220.09368481,0.00018373,2]
[370002270,1751821841929,-460.0,0.00018373,2]
[370002272,1751821841939,-998.47,0.00018373,2]
[370002274,1751821841948,-627.24,0.00018373,2]
[370002276,1751821841957,-460.0,0.00018373,2]
[370002278,1751821841972,-151.51,0.00018373,2]
[370002280,1751821841981,-500.0,0.00018374,2]
[370002282,1751821841990,-460.0,0.00018374,2]
[370002284,1751821842000,-460.0,0.00018374,2]
[370002286,1751821842009,-1002.5,0.00018374,2]
[370002288,1751821842018,-288.42,0.00018374,2]
[370002290,1751821842028,-460.0,0.00018374,2]
[370002292,1751821842037,-719.04,0.00018374,2]
[370002294,1751821842046,-500.0,0.00018374,2]
[370002296,1751821842055,-1567.87,0.00018374,2]
[370002298,1751821842064,-466.08,0.00018374,2]
[370002300,1751821842074,-941.0,0.00018374,2]
[370002302,1751821842083,-602.21,0.00018374,2]
[370002303,1751821842092,-479.59,0.00018374,2]
[370002305,1751821842101,-499.13,0.00018374,2]
[370002307,1751821842110,-460.0,0.00018374,2]
[370002309,1751821842120,-840.73473746,0.00018384,2]
[370002311,1751821842129,-890.64427428,0.00018415,2]
[370002313,1751821842139,-923.59811243,0.0001847,2]
[370002315,1751821842148,-500.0,0.00018483,2]
[370002317,1751821842157,-215.18120504,0.00018483,2]
[370002319,1751821842166,-214.03875559,0.00018483,2]
[370002321,1751821842176,-160.0,0.00018483,2]
[370002323,1751821842186,-230.45878613,0.00018483,2]
[370002326,1751821842195,-12582.33653824,0.00018483,2]
[370002328,1751821842206,-848.15551661,0.00018483,2]
[370002329,1751821842215,-837.69501035,0.00018483,2]
[370002331,1751821842224,-160.0,0.00018483,2]
[370002333,1751821842234,-160.0,0.00018483,2]
[370002335,1751821842243,-160.0,0.00018483,2]
[370002337,1751821842253,-957.77124259,0.00018525,2]
[370002339,1751821842262,-25000.0,0.00018578,2]
[370002341,1751821842271,-5000.0,0.00018578,2]
[370002343,1751821842281,-993.20877856,0.0001858,2]
[370002345,1751821842290,-1053.55994447,0.00018635,2]
[370002347,1751821842299,-701.9,0.00018646,2]
[370002349,1751821842309,-930.94,0.00018647,2]
[370002351,1751821842318,-941.97,0.00018647,2]
[370002353,1751821842327,-460.0,0.00018647,2]
[370002355,1751821842336,-1262.76,0.00018647,2]
[370002357,1751821842347,-1010.32,0.00018647,2]
[370002359,1751821842357,-936.47,0.00018647,2]
[370002361,1751821842366,-1092.48,0.00018647,2]
[370002363,1751821842375,-605.55,0.00018647,2]
[370002365,1751821842385,-460.0,0.00018647,2]
[370002367,1751821842394,-998.47,0.00018647,2]
[370002370,1751821842403,-627.24,0.00018647,2]
[370002371,1751821842412,-460.0,0.00018647,2]
[370002373,1751821842422,-500.0,0.00018648,2]
[370002375,1751821842431,-602.93808649,0.00018648,2]
[370002377,1751821842440,-460.0,0.00018648,2]
[370002379,1751821842450,-1002.5,0.00018648,2]
[370002381,1751821842459,-460.0,0.00018648,2]
[370002384,1751821842469,-719.04,0.00018648,2]
[370002386,1751821842479,-1567.87,0.00018648,2]
[370002388,1751821842489,-466.08,0.00018648,2]
[370002389,1751821842498,-941.0,0.00018648,2]
[370002391,1751821842507,-602.21,0.00018648,2]
[370002393,1751821842516,-479.59,0.00018648,2]
[370002395,1751821842526,-499.13,0.00018648,2]
[370002397,1751821842535,-460.0,0.00018648,2]
[370002399,1751821842545,-420.0,0.00018863,2]
[370002401,1751821842554,-7258.24569104,0.000189,2]
[370002425,1751821842798,-2241.71922629,0.000189,2]
[370002427,1751821842809,-309.26077371,0.000189,2]
[370002429,1751821842821,-3124.66484592,0.000189,2]
[370002431,1751821842831,-701.9,0.0001892,2]
[370002433,1751821842840,-930.94,0.00018921,2]
[370002435,1751821842850,-941.97,0.00018921,2]
[370002437,1751821842859,-460.0,0.00018921,2]
[370002439,1751821842869,-1262.76,0.00018921,2]
[370002441,1751821842879,-1010.32,0.00018921,2]
[370002442,1751821842888,-936.47,0.00018921,2]
[370002443,1751821842897,-1092.48,0.00018921,2]
[370002444,1751821842906,-605.55,0.00018921,2]
[370002445,1751821842915,-460.0,0.00018921,2]
[370002446,1751821842925,-998.47,0.00018921,2]
[370002447,1751821842935,-627.24,0.00018921,2]
[370002448,1751821842944,-460.0,0.00018921,2]
[370002449,1751821842954,-460.0,0.00018922,2]
[370002450,1751821842969,-1002.5,0.00018922,2]
[370002451,1751821842979,-460.0,0.00018922,2]
[370002452,1751821842988,-719.04,0.00018922,2]
[370002453,1751821842998,-1567.87,0.00018922,2]
[370002454,1751821843009,-466.08,0.00018922,2]
[370002456,1751821843019,-941.0,0.00018922,2]
[370002458,1751821843028,-602.21,0.00018922,2]
[370002460,1751821843038,-479.59,0.00018922,2]
[370002462,1751821843047,-499.13,0.00018922,2]
[370002464,1751821843057,-460.0,0.00018922,2]
[370002466,1751821843066,-30013.00984384,0.00019,5]
[370002469,1751821843075,-500.0,0.00019008,2]
[370002471,1751821843085,-1625.81958321,0.00019076,7]
[370002475,1751821843098,-25000.0,0.00019126,2]
[370002477,1751821843107,-5000.0,0.00019126,2]
[370002479,1751821843116,-9499.96491709,0.00019141,2]
[370002480,1751821843125,-666.0,0.00019178,2]
[370002482,1751821843134,-389.094603,0.00019178,2]
[370002484,1751821843144,-840.73473746,0.00019193,2]
[370002485,1751821843153,-701.9,0.00019194,2]
[370002486,1751821843162,-930.94,0.00019195,2]
[370002488,1751821843172,-941.97,0.00019195,2]
[370002489,1751821843181,-460.0,0.00019195,2]
[370002490,1751821843190,-1262.76,0.00019195,2]
[370002491,1751821843199,-1010.32,0.00019195,2]
[370002492,1751821843209,-936.47,0.00019195,2]
[370002493,1751821843218,-1092.48,0.00019195,2]
[370002494,1751821843227,-605.55,0.00019195,2]
[370002495,1751821843237,-460.0,0.00019195,2]
[370002496,1751821843246,-998.47,0.00019195,2]
[370002497,1751821843256,-627.24,0.00019195,2]
[370002498,1751821843266,-460.0,0.00019195,2]
[370002499,1751821843275,-460.0,0.00019196,2]
[370002500,1751821843285,-865.871,0.00019196,2]
[370002501,1751821843294,-400.00742309,0.00019196,2]
[370002502,1751821843383,-464.47,0.00017277,2]
[370002503,1751821843393,-460.0,0.00017278,2]
[370002504,1751821843403,-460.0,0.00017552,2]
[370002505,1751821843412,-151.0,0.0001803,2]
[370002506,1751821843421,-151.0,0.0001803,2]
[370002508,1751821843431,-151.0,0.0001803,2]
[370002509,1751821843440,-602.49257691,0.00019196,2]
[370002510,1751821843450,-460.0,0.00019196,2]
[370002511,1751821843459,-719.04,0.00019196,2]
[370002512,1751821843468,-1567.87,0.00019196,2]
[370002513,1751821843478,-466.08,0.00019196,2]
[370002514,1751821843487,-941.0,0.00019196,2]
[370002515,1751821843497,-602.21,0.00019196,2]
[370002516,1751821843507,-479.59,0.00019196,2]
[370002517,1751821843516,-499.13,0.00019196,2]
[370002518,1751821843525,-460.0,0.00019196,2]
[370002519,1751821843535,-514.87927659,0.00019329,2]
[370002520,1751821843544,-460.0,0.00019329,2]
[370002521,1751821843553,-460.0,0.00019329,2]
[370002522,1751821843562,-6732.0592795,0.00019329,2]
[370002524,1751821843698,-500.0,0.00017277,2]
[370002525,1751821843707,-460.0,0.00017826,2]
[370002526,1751821843717,-151.0,0.0001803,2]
[370002527,1751821843726,-460.0,0.000181,2]
[370002528,1751821843735,-460.0,0.00018374,2]
[370002529,1751821843744,-460.0,0.00018648,2]
[370002530,1751821843753,-460.0,0.00018922,2]
[370002531,1751821843762,-460.0,0.00019196,2]
[370002532,1751821843771,-15144.39747831,0.00019329,2]
[370002549,1751821846458,-822.97,0.00017276,2]
[370002550,1751821846467,-822.97,0.0001755,2]
[370002551,1751821846477,-822.97,0.00017824,2]
[370002552,1751821846486,-151.0,0.0001803,2]
[370002553,1751821846495,-822.97,0.00018098,2]
[370002554,1751821846504,-822.97,0.00018372,2]
[370002555,1751821846514,-822.97,0.00018646,2]
[370002556,1751821846523,-30011.45383691,0.00019329,2]
[370002557,1751821846532,-3612.39616309,0.00019383,2]
[370002562,1751822185909,524.419919,0.00016321,2]
[370002564,1751822681874,10098.9293539,0.00016405,2]
[370002565,1751822725048,24900.0,0.00016275,2]
[370002566,1751822795041,-155.98770955,0.00016973,2]
[370002568,1751822814613,1189.364175,0.00013699,2]
[370002572,1751822868943,4844.01229045,0.00016801,2]
[370002573,1751822914262,89454.32900201,0.00016209,2]
[370002574,1751822925316,154.49073079,0.000168,2]
[370002581,1751823011639,2903.16463563,0.00025417,90]
[370002614,1751823032612,-163.75489393,0.00017144,2]
[370002616,1751823032622,-175.16065312,0.00017273,2]
[370002618,1751823032634,-124.83934688,0.00017273,2]
[370002620,1751823032643,-1150.65065312,0.00017273,2]
[370002624,1751823032667,-49.34934688,0.00017273,2]
[370002625,1751823032677,-300.0,0.00017273,2]
[370002626,1751823032686,-300.0,0.00017273,2]
[370002628,1751823032697,-300.0,0.00017273,2]
[370002630,1751823032706,-500.0,0.00017274,2]
[370002632,1751823032715,-122.4119428,0.00017274,2]
[370002634,1751823032727,-391.41556576,0.00017274,2]
[370002636,1751823032736,-460.0,0.00017274,2]
[370002638,1751823032745,-342.58443424,0.00017274,2]
[370002641,1751823032757,-117.41556576,0.00017274,2]
[370002643,1751823032766,-695.08,0.00017274,2]
[370002646,1751823032776,-124.59173656,0.00017274,2]
[370002686,1751823038704,-335.40826344,0.00017274,2]
[370002687,1751823038714,-460.0,0.00017274,2]
[370002688,1751823038723,-460.0,0.00017274,2]
[370002689,1751823038732,-1683.49,0.00017274,2]
[370002690,1751823038741,-624.35045277,0.00017275,2]
[370002691,1751823038750,-500.0,0.00017275,2]
[370002692,1751823038759,-500.0,0.00017275,2]
[370002693,1751823038769,-500.0,0.00017275,2]
[370002694,1751823038778,-465.34371016,0.00017275,2]
[370002695,1751823038788,-460.0,0.00017275,2]
[370002696,1751823038798,-460.0,0.00017275,2]
[370002697,1751823038808,-460.0,0.00017275,2]
[370002698,1751823038817,-415.31647143,0.00017275,2]
[370002699,1751823038828,-552.43352857,0.00017275,2]
[370002700,1751823038837,-460.0,0.00017275,2]
[370002701,1751823038847,-460.0,0.00017275,2]
[370002702,1751823038856,-460.0,0.00017275,2]
[370002703,1751823038865,-460.0,0.00017275,2]
[370002704,1751823038874,-460.0,0.00017275,2]
[370002705,1751823038883,-460.0,0.00017275,2]
[370002706,1751823038892,-952.64,0.00017275,2]
[370002707,1751823038902,-460.0,0.00017275,2]
[370002708,1751823038922,-460.0,0.00017275,2]
[370002709,1751823038933,-1166.45,0.00017275,2]
[370002710,1751823038943,-460.0,0.00017275,2]
[370002711,1751823038952,-460.0,0.00017275,2]
[370002712,1751823038962,-460.0,0.00017275,2]
[370002713,1751823038972,-1080.96,0.00017275,2]
[370002714,1751823038981,-460.0,0.00017275,2]
[370002715,1751823038991,-606.52,0.00017275,2]
[370002716,1751823039001,-460.0,0.00017275,2]
[370002717,1751823039010,-460.0,0.00017275,2]
[370002718,1751823039020,-460.0,0.00017275,2]
[370002719,1751823039029,-460.0,0.00017275,2]
[370002720,1751823039040,-460.0,0.00017275,2]
[370002721,1751823039050,-460.0,0.00017275,2]
[370002722,1751823039062,-460.0,0.00017275,2]
[370002723,1751823039072,-460.0,0.00017275,2]
[370002724,1751823039082,-645.81,0.00017275,2]
[370002725,1751823039091,-460.0,0.00017275,2]
[370002726,1751823039101,-821.23,0.00017275,2]
[370002727,1751823039111,-360.7900895,0.00017275,2]
[370002728,1751823039124,-99.2099105,0.00017275,2]
[370002729,1751823039134,-460.0,0.00017275,2]
[370002730,1751823039143,-205.7900895,0.00017275,2]
[370002731,1751823039445,-254.2099105,0.00017275,2]
[370002732,1751823039455,-460.0,0.00017275,2]
[370002733,1751823039465,-3290.38204439,0.00017275,2]
[370002734,1751823039481,-11549.13322751,0.00017275,2]
[370002735,1751823039490,-460.0,0.00017276,2]
[370002736,1751823039500,-500.0,0.00017276,2]
[370002737,1751823039509,-460.0,0.00017276,2]
[370002738,1751823039518,-460.0,0.00017276,2]
[370002739,1751823039527,-460.0,0.00017276,2]
[370002740,1751823039536,-460.0,0.00017276,2]
[370002741,1751823039546,-540.0,0.00017276,2]
[370002742,1751823039555,-460.0,0.00017276,2]
[370002743,1751823039568,-460.0,0.00017276,2]
[370002744,1751823039578,-460.0,0.00017276,2]
[370002745,1751823039587,-460.0,0.00017276,2]
[370002746,1751823039597,-460.0,0.00017276,2]
[370002747,1751823039606,-460.0,0.00017276,2]
[370002748,1751823039615,-460.0,0.00017276,2]
[370002749,1751823039625,-460.0,0.00017276,2]
[370002750,1751823039635,-460.0,0.00017276,2]
[370002751,1751823039644,-460.0,0.00017276,2]
[370002752,1751823039653,-460.0,0.00017276,2]
[370002753,1751823039663,-460.0,0.00017276,2]
[370002754,1751823039672,-460.0,0.00017276,2]
[370002755,1751823039686,-460.0,0.00017276,2]
[370002756,1751823039695,-460.0,0.00017276,2]
[370002757,1751823039705,-460.0,0.00017276,2]
[370002758,1751823039714,-460.0,0.00017276,2]
[370002759,1751823039724,-460.0,0.00017276,2]
[370002760,1751823039734,-1273.77,0.00017276,2]
[370002761,1751823039744,-460.0,0.00017276,2]
[370002762,1751823039754,-460.0,0.00017276,2]
[370002763,1751823039764,-500.0,0.00017276,2]
[370002764,1751823039776,-460.0,0.00017276,2]
[370002765,1751823039786,-460.0,0.00017276,2]
[370002766,1751823039796,-460.0,0.00017276,2]
[370002767,1751823039806,-460.0,0.00017276,2]
[370002768,1751823039815,-460.0,0.00017276,2]
[370002769,1751823039824,-460.0,0.00017276,2]
[370002770,1751823039834,-1725.46,0.00017276,2]
[370002771,1751823039843,-497.39980617,0.00017276,2]
[370002772,1751823039852,-460.0,0.00017276,2]
[370002773,1751823039862,-460.0,0.00017276,2]
[370002774,1751823039871,-460.0,0.00017276,2]
[370002775,1751823039880,-662.9,0.00017276,2]
[370002776,1751823039890,-509.84,0.00017276,2]
[370002777,1751823039899,-460.0,0.00017276,2]
[370002778,1751823039909,-460.0,0.00017276,2]
[370002779,1751823039919,-460.0,0.00017276,2]
[370002780,1751823039928,-460.0,0.00017276,2]
[370002781,1751823039938,-460.0,0.00017276,2]
[370002782,1751823039948,-460.0,0.00017276,2]
[370002783,1751823039957,-699.88,0.00017276,2]
[370002784,1751823039967,-460.0,0.00017276,2]
[370002785,1751823039976,-460.0,0.00017276,2]
[370002786,1751823039986,-460.0,0.00017276,2]
[370002787,1751823039995,-460.0,0.00017276,2]
[370002788,1751823040005,-461.45439657,0.00017276,2]
[370002789,1751823040017,-510.16,0.00017277,2]
[370002790,1751823040027,-281.17,0.00017277,2]
[370002791,1751823040037,-460.0,0.00017277,2]
[370002792,1751823040048,-460.0,0.00017277,2]
[370002793,1751823040060,-460.0,0.00017277,2]
[370002794,1751823040070,-460.0,0.00017277,2]
[370002795,1751823040080,-500.0,0.00017451,2]
[370002796,1751823040089,-500.0,0.00017451,2]
[370002797,1751823040099,-500.0,0.00017451,2]
[370002798,1751823040108,-62301.6697406,0.00017452,2]
[370002799,1751823040117,-468.04,0.00017548,2]
[370002800,1751823040127,-695.08,0.00017548,2]
[370002801,1751823040136,-460.0,0.00017548,2]
[370002802,1751823040145,-460.0,0.00017548,2]
[370002803,1751823040155,-1683.49,0.00017548,2]
[370002804,1751823040165,-460.0,0.00017549,2]
[370002805,1751823040174,-967.75,0.00017549,2]
[370002806,1751823040183,-460.0,0.00017549,2]
[370002807,1751823040193,-460.0,0.00017549,2]
[370002808,1751823040202,-460.0,0.00017549,2]
[370002809,1751823040212,-453.14453504,0.00017549,2]
[370002810,1751823040221,-952.64,0.00017549,2]
[370002811,1751823040230,-601.92313938,0.00017549,2]
[370002812,1751823040239,-1166.45,0.00017549,2]
[370002814,1751823040250,-460.0,0.00017549,2]
[370002815,1751823040261,-460.0,0.00017549,2]
[370002816,1751823040270,-1080.96,0.00017549,2]
[370002817,1751823040280,-460.0,0.00017549,2]
[370002818,1751823040290,-606.52,0.00017549,2]
[370002819,1751823040300,-460.0,0.00017549,2]
[370002820,1751823040309,-460.0,0.00017549,2]
[370002821,1751823040318,-460.0,0.00017549,2]
[370002822,1751823040327,-460.0,0.00017549,2]
[370002823,1751823040337,-460.0,0.00017549,2]
[370002824,1751823040346,-460.0,0.00017549,2]
[370002825,1751823040356,-645.81,0.00017549,2]
[370002826,1751823040366,-460.0,0.00017549,2]
[370002827,1751823040375,-821.23,0.00017549,2]
[370002828,1751823040384,-460.0,0.00017549,2]
[370002829,1751823040394,-460.0,0.00017549,2]
[370002830,1751823040403,-460.0,0.00017549,2]
[370002831,1751823040413,-460.0,0.00017549,2]
[370002832,1751823040422,-500.0,0.0001755,2]
[370002833,1751823040431,-460.0,0.0001755,2]
[370002834,1751823040441,-460.0,0.0001755,2]
[370002835,1751823040636,-460.0,0.0001755,2]
[370002836,1751823040651,-516.10430356,0.0001755,2]
[370002837,1751823040661,-502.23991585,0.0001755,2]
[370002838,1751823040671,-460.0,0.0001755,2]
[370002839,1751823040683,-460.0,0.0001755,2]
[370002840,1751823040693,-460.0,0.0001755,2]
[370002841,1751823040702,-460.0,0.0001755,2]
[370002842,1751823040712,-460.0,0.0001755,2]
[370002843,1751823040722,-460.0,0.0001755,2]
[370002844,1751823040731,-460.0,0.0001755,2]
[370002845,1751823040740,-460.0,0.0001755,2]
[370002846,1751823040749,-460.0,0.0001755,2]
[370002847,1751823040759,-460.0,0.0001755,2]
[370002848,1751823040768,-460.0,0.0001755,2]
[370002849,1751823040778,-964.43,0.0001755,2]
[370002850,1751823040787,-460.0,0.0001755,2]
[370002851,1751823040796,-1273.77,0.0001755,2]
[370002852,1751823040807,-460.0,0.0001755,2]
[370002853,1751823040816,-460.0,0.0001755,2]
[370002854,1751823040826,-460.0,0.0001755,2]
[370002855,1751823040837,-460.0,0.0001755,2]
[370002856,1751823040847,-460.0,0.0001755,2]
[370002857,1751823040858,-460.0,0.0001755,2]
[370002858,1751823040867,-741.77,0.0001755,2]
[370002859,1751823040877,-460.0,0.0001755,2]
[370002860,1751823040887,-1725.46,0.0001755,2]
[370002861,1751823040896,-460.0,0.0001755,2]
[370002862,1751823040905,-460.0,0.0001755,2]
[370002863,1751823040914,-662.9,0.0001755,2]
[370002864,1751823040924,-509.84,0.0001755,2]
[370002865,1751823040933,-1455.23,0.0001755,2]
[370002866,1751823040942,-460.0,0.0001755,2]
[370002867,1751823040951,-460.0,0.0001755,2]
[370002868,1751823040960,-460.0,0.0001755,2]
[370002869,1751823040969,-460.0,0.0001755,2]
[370002870,1751823040978,-520.8,0.0001755,2]
[370002871,1751823040987,-699.88,0.0001755,2]
[370002873,1751823040997,-460.0,0.0001755,2]
[370002874,1751823041006,-460.0,0.0001755,2]
[370002875,1751823041015,-460.0,0.0001755,2]
[370002876,1751823041024,-460.0,0.0001755,2]
[370002877,1751823041033,-460.0,0.00017551,2]
[370002878,1751823041042,-460.0,0.00017551,2]
[370002879,1751823041051,-460.0,0.00017551,2]
[370002880,1751823041060,-695.08,0.00017822,2]
[370002881,1751823041070,-460.0,0.00017822,2]
[370002882,1751823041079,-1683.49,0.00017822,2]
[370002883,1751823041088,-182.11995258,0.00017823,2]
[370002884,1751823041097,-967.75,0.00017823,2]
[370002885,1751823041107,-460.0,0.00017823,2]
[370002886,1751823041118,-460.0,0.00017823,2]
[370002887,1751823041128,-952.64,0.00017823,2]
[370002888,1751823041139,-1166.45,0.00017823,2]
[370002889,1751823041148,-337.41727128,0.00017823,2]
[370002890,1751823041159,-568.12080442,0.00017823,2]
[370002891,1751823041168,-1080.96,0.00017823,2]
[370002892,1751823041179,-606.52,0.00017823,2]
[370002893,1751823041188,-460.0,0.00017823,2]
[370002894,1751823041198,-597.43,0.00017823,2]
[370002895,1751823041208,-460.0,0.00017823,2]
[370002896,1751823041218,-460.0,0.00017823,2]
[370002897,1751823041227,-645.81,0.00017823,2]
[370002898,1751823041237,-821.23,0.00017823,2]
[370002899,1751823041247,-460.0,0.00017823,2]
[370002900,1751823041256,-460.0,0.00017823,2]
[370002901,1751823041265,-460.0,0.00017823,2]
[370002902,1751823041275,-212.34026626,0.00017824,2]
[370002903,1751823041284,-460.0,0.00017824,2]
[370002904,1751823041294,-460.0,0.00017824,2]
[370002905,1751823041303,-460.0,0.00017824,2]
[370002906,1751823041312,-460.0,0.00017824,2]
[370002907,1751823041321,-460.0,0.00017824,2]
[370002908,1751823041331,-460.0,0.00017824,2]
[370002909,1751823041339,-151.77122356,0.00017824,2]
[370002910,1751823041349,-460.0,0.00017824,2]
[370002911,1751823041358,-460.0,0.00017824,2]
[370002912,1751823041368,-604.21,0.00017824,2]
[370002913,1751823041378,-460.0,0.00017824,2]
[370002914,1751823041388,-964.43,0.00017824,2]
[370002915,1751823041398,-1273.77,0.00017824,2]